fUST/lending_fUST_20240429
["ID","MTS","AMOUNT","RATE_DAILY","PERIOD"]
[324886157,1714397439506,-693.32219262,0.00024,2]
[324886158,1714397439516,-620.0,0.00024578,2]
[324886159,1714397439526,-620.00752541,0.00024578,2]
[324886160,1714397439535,-500.0,0.00024657,2]
[324886161,1714397439545,-500.0,0.00024657,2]
[324886162,1714397439555,-200.0,0.00024658,2]
[324886163,1714397439564,-380.0,0.00024658,2]
[324886164,1714397439575,-500.0,0.00024712,2]
[324886165,1714397439584,-500.0,0.00024767,2]
[324886166,1714397439594,-500.0,0.00024821,2]
[324886167,1714397439603,-500.0,0.00024876,2]
[324886168,1714397439613,-500.0,0.00024931,2]
[324886169,1714397439622,-500.0,0.00024986,2]
[324886170,1714397439632,-154.76784823,0.00025,2]
[324886171,1714397439641,-154.76784823,0.00025,2]
[324886172,1714397439651,-301.63978297,0.00025,2]
[324886173,1714397439660,-500.0,0.00025041,2]
[324886174,1714397439670,-500.0,0.00025095,2]
[324886175,1714397439679,-2451.538128,0.00025125,2]
[324886176,1714397439688,-500.0,0.0002515,2]
[324886177,1714397439697,-500.0,0.00025205,2]
[324886178,1714397439708,-151.0,0.00025218,2]
[324886179,1714397439718,-500.0,0.0002526,2]
[324886180,1714397439727,-500.0,0.00025315,2]
[324886181,1714397439736,-500.0,0.00025369,2]
[324886182,1714397439745,-500.0,0.00025424,2]
[324886183,1714397439754,-999.0,0.00025479,2]
[324886184,1714397439763,-500.0,0.00025479,2]
[324886185,1714397439772,-500.0,0.00025534,2]
[324886187,1714397439782,-500.0,0.00025589,2]
[324886189,1714397439790,-500.0,0.00025643,2]
[324886190,1714397439799,-500.0,0.00025698,2]
[324886191,1714397439809,-500.0,0.00025753,2]
[324886192,1714397439818,-620.0,0.00025807,2]
[324886193,1714397439827,-620.00037627,0.00025807,2]
[324886194,1714397439836,-500.0,0.00025808,2]
[324886195,1714397439845,-500.0,0.00025863,2]
[324886196,1714397439854,-204.57520726,0.00025917,2]
[324886197,1714397439863,-1116.6496876,0.00026,2]
[324886198,1714397439873,-434.54,0.00026102,2]
[324886199,1714397439882,-1613.0,0.00026163,2]
[324886200,1714397439892,-999.0,0.00026575,4]
[324886201,1714397439901,-8527.63031331,0.00027,2]
[324886202,1714397439910,-10000.0,0.00027,2]
[324886204,1714397439919,-11042.01768988,0.00027,2]
[324886206,1714397439928,-805.06024593,0.00027,2]
[324886208,1714397439937,-5000.0,0.00027,3]
[324886210,1714397439947,-620.0,0.00027098,2]
[324886212,1714397439957,-620.00001881,0.00027098,2]
[324886214,1714397439966,-500.0,0.00027397,2]
[324886216,1714397439974,-166.666666,0.00027397,2]
[324886218,1714397439983,-154.76784823,0.000274,2]
[324886220,1714397439992,-999.0,0.00027671,6]
[324886222,1714397440001,-277.75375946,0.00027879,3]
[324886224,1714397440012,-424.03324128,0.00028,2]
[324886226,1714397440021,-10000.0,0.00028,2]
[324886228,1714397440030,-11042.0,0.00028,2]
[324886230,1714397440039,-805.0,0.00028,2]
[324886232,1714397440048,-504.24371511,0.00028,2]
[324886235,1714397440058,-166.666666,0.00028038,2]
[324886237,1714397440067,-2405.9576,0.00028108,30]
[324886239,1714397440077,-620.00000094,0.00028453,2]
[324886241,1714397440086,-572.277777,0.00028493,2]
[324886243,1714397440096,-166.666666,0.00028679,2]
[324886245,1714397440105,-500.0,0.00028767,10]
[324886247,1714397440115,-999.0,0.00028767,8]
[324886249,1714397440126,-2258.0,0.00028779,2]
[324886251,1714397440138,-2864.72785824,0.000289,2]
[324886253,1714397440148,-153.79833288,0.00029073,2]
[324886255,1714397440157,-216.74919805,0.00029078,2]
[324886257,1714397440167,-417.0,0.00029102,2]
[324886259,1714397440177,-151.47429953,0.00029151,2]
[324886261,1714397440186,-151.47429953,0.00029158,2]
[324886263,1714397440196,-156.18617836,0.0002916,2]
[324886265,1714397440206,-237.0868477,0.00029186,2]
[324886267,1714397440218,-216.74919805,0.00029196,2]
[324886268,1714397440228,-821.97845428,0.0002921,2]
[324886269,1714397440237,-821.97845428,0.00029215,2]
[324886270,1714397440248,-821.97845428,0.00029233,2]
[324886271,1714397440258,-237.0868477,0.00029262,2]
[324886273,1714397440267,-821.97845428,0.0002928,2]
[324886275,1714397440276,-216.74919805,0.00029304,2]
[324886277,1714397440286,-156.18617836,0.0002931,2]
[324886278,1714397440295,-166.666666,0.00029321,2]
[324886279,1714397440304,-153.79833288,0.00029334,2]
[324886280,1714397440313,-151.47429953,0.00029346,2]
[324886281,1714397440323,-237.0868477,0.00029379,2]
[324886282,1714397440333,-237.0868477,0.00029405,2]
[324886283,1714397440343,-151.47429953,0.00029432,2]
[324886284,1714397440352,-821.97845428,0.00029434,2]
[324886285,1714397440362,-151.47429953,0.00029438,2]
[324886286,1714397440371,-153.79833288,0.00029442,2]
[324886287,1714397440381,-216.74919805,0.00029456,2]
[324886289,1714397440390,-156.18617836,0.00029574,2]
[324886291,1714397440400,-237.0868477,0.00029581,2]
[324886293,1714397440410,-153.79833288,0.00029594,2]
[324886295,1714397440421,-237.0868477,0.00029595,2]
[324886297,1714397440430,-821.97845428,0.00029597,2]
[324886299,1714397440440,-153.79833288,0.00029601,2]
[324886301,1714397440449,-151.47429953,0.00029616,2]
[324886303,1714397440467,-821.97845428,0.00029635,2]
[324886305,1714397440477,-156.18617836,0.0002964,2]
[324886307,1714397440486,-156.18617836,0.00029644,2]
[324886309,1714397440496,-156.18617836,0.00029664,2]
[324886311,1714397440507,-216.74919805,0.00029669,2]
[324886313,1714397440516,-156.18617836,0.00029691,2]
[324886314,1714397440526,-821.97845428,0.00029698,2]
[324886315,1714397440535,-153.79833288,0.00029711,2]
[324886316,1714397440545,-156.18617836,0.0002972,2]
[324886317,1714397440554,-216.74919805,0.00029728,2]
[324886318,1714397440564,-153.79833288,0.00029802,2]
[324886319,1714397440573,-151.47429953,0.00029814,2]
[324886320,1714397440583,-216.74919805,0.00029831,2]
[324886321,1714397440593,-821.97845428,0.00029854,2]
[324886322,1714397440602,-999.0,0.00029863,10]
[324886323,1714397440612,-620.00000005,0.00029875,2]
[324886324,1714397440623,-153.79833288,0.00029882,2]
[324886325,1714397440632,-821.97845428,0.00029896,2]
[324886326,1714397440642,-237.0868477,0.00029903,2]
[324886327,1714397440652,-153.79833288,0.00029937,2]
[324886328,1714397440661,-151.47429953,0.00029948,2]
[324886329,1714397440671,-224.34545947,0.00029954,2]
[324886330,1714397440681,-166.666666,0.00029962,2]
[324886331,1714397440690,-216.74919805,0.00029975,2]
[324886332,1714397440700,-237.0868477,0.00029986,2]
[324886333,1714397440713,-151.47429953,0.00029996,2]
[324886334,1714397440723,-154.76784823,0.0003,4]
[324886335,1714397440733,-1329.78267311,0.0003,4]
[324886336,1714397440742,-154.76784823,0.0003,4]
[324886337,1714397440751,-154.76784823,0.0003,4]
[324886338,1714397440760,-1366.26453115,0.0003,4]
[324886339,1714397440770,-500.0,0.0003,2]
[324886340,1714397440780,-228.0,0.0003,2]
[324886341,1714397440789,-821.97845428,0.00030015,7]
[324886342,1714397440799,-151.47429953,0.00030017,7]
[324886343,1714397440809,-216.74919805,0.00030032,7]
[324886344,1714397440887,-237.0868477,0.00030062,7]
[324886345,1714397440906,-153.79833288,0.00030092,7]
[324886346,1714397440916,-237.0868477,0.00030101,7]
[324886347,1714397440925,-500.0,0.00030136,10]
[324886348,1714397440934,-156.18617836,0.00030164,7]
[324886349,1714397440944,-151.47429953,0.00030177,7]
[324886350,1714397440956,-237.0868477,0.00030216,7]
[324886351,1714397440965,-216.74919805,0.0003022,7]
[324886352,1714397440975,-821.97845428,0.00030237,7]
[324886353,1714397440985,-216.74919805,0.00030243,7]
[324886354,1714397440994,-821.97845428,0.00030258,7]
[324886355,1714397441005,-821.97845428,0.00030271,7]
[324886356,1714397441014,-237.0868477,0.00030279,7]
[324886357,1714397441024,-237.0868477,0.00030286,7]
[324886358,1714397441034,-821.97845428,0.00030305,7]
[324886359,1714397441043,-151.47429953,0.00030316,7]
[324886360,1714397441053,-216.74919805,0.00030339,7]
[324886361,1714397441062,-151.47429953,0.00030341,7]
[324886362,1714397441072,-151.47429953,0.0003036,7]
[324886363,1714397441081,-821.97845428,0.00030376,7]
[324886364,1714397441090,-151.47429953,0.00030393,7]
[324886365,1714397441100,-237.0868477,0.00030415,7]
[324886366,1714397441109,-156.18617836,0.0003043,7]
[324886367,1714397441119,-216.74919805,0.00030494,7]
[324886368,1714397441130,-156.18617836,0.00030535,7]
[324886369,1714397441144,-821.97845428,0.00030554,7]
[324886370,1714397441154,-216.74919805,0.00030568,7]
[324886371,1714397441163,-166.666666,0.00030603,2]
[324886372,1714397441174,-151.47429953,0.00030654,7]
[324886373,1714397441183,-237.0868477,0.0003069,7]
[324886374,1714397441194,-1000.0,0.0003071,2]
[324886375,1714397441206,-1000.0,0.0003071,2]
[324886376,1714397441217,-1000.0,0.0003071,2]
[324886377,1714397441229,-1000.0,0.0003071,2]
[324886378,1714397441239,-3000.859812,0.0003071,2]
[324886379,1714397441248,-216.74919805,0.0003072,7]
[324886380,1714397441258,-153.79833288,0.00030781,7]
[324886381,1714397441267,-153.79833288,0.00030784,7]
[324886382,1714397441277,-151.47429953,0.00030851,7]
[324886383,1714397441286,-153.79833288,0.00030889,7]
[324886384,1714397441296,-158.20865679,0.00030931,7]
[324886385,1714397441306,-153.79833288,0.00030936,7]
[324886386,1714397441316,-999.0,0.00030958,12]
[324886387,1714397441325,-216.74919805,0.00030972,7]
[324886388,1714397441335,-237.0868477,0.00030977,7]
[324886389,1714397441344,-156.18617836,0.00030986,7]
[324886390,1714397441354,-821.97845428,0.00031006,7]
[324886391,1714397441363,-216.74919805,0.00031012,7]
[324886392,1714397441373,-216.74919805,0.00031028,7]
[324886393,1714397441383,-151.47429953,0.00031039,7]
[324886394,1714397441392,-821.97845428,0.00031053,7]
[324886395,1714397441401,-821.97845428,0.00031092,7]
[324886396,1714397441412,-1375.188556,0.000311,7]
[324886397,1714397441422,-237.0868477,0.00031101,7]
[324886398,1714397441431,-216.74919805,0.00031102,7]
[324886399,1714397441441,-237.0868477,0.0003112,7]
[324886400,1714397441451,-156.18617836,0.00031127,7]
[324886401,1714397441464,-150.75878594,0.00031156,2]
[324886402,1714397441473,-216.74919805,0.00031157,7]
[324886403,1714397441483,-237.0868477,0.00031162,7]
[324886404,1714397441492,-156.18617836,0.00031165,7]
[324886405,1714397441502,-237.0868477,0.00031181,7]
[324886406,1714397441511,-821.97845428,0.00031217,7]
[324886407,1714397441520,-151.47429953,0.00031284,7]
[324886408,1714397441530,-153.79833288,0.00031287,7]
[324886409,1714397441539,-216.74919805,0.000313,7]
[324886410,1714397441549,-821.97845428,0.0003131,7]
[324886411,1714397441558,-153.79833288,0.00031327,7]
[324886412,1714397441569,-151.47429953,0.00031352,7]
[324886413,1714397441578,-620.0,0.00031369,2]
[324886414,1714397441588,-151.47429953,0.00031447,7]
[324886415,1714397441598,-156.18617836,0.0003145,7]
[324886416,1714397441607,-151.47429953,0.00031451,7]
[324886417,1714397441617,-153.79833288,0.00031459,7]
[324886418,1714397441626,-821.97845428,0.00031462,7]
[324886419,1714397441637,-386.80351831,0.000315,2]
[324886420,1714397441646,-500.0,0.00031506,10]
[324886421,1714397441655,-821.97845428,0.00031508,7]
[324886422,1714397441665,-821.97845428,0.00031521,7]
[324886423,1714397441674,-252.56123453,0.00031523,2]
[324886424,1714397441684,-153.79833288,0.00031562,7]
[324886425,1714397441694,-418.23752853,0.000316,2]
[324886426,1714397441704,-418.23752853,0.000316,2]
[324886427,1714397441715,-418.23752853,0.000316,2]
[324886428,1714397441725,-418.23752853,0.000316,2]
[324886429,1714397441734,-418.23752853,0.000316,2]
[324886430,1714397441743,-418.23752853,0.000316,2]
[324886431,1714397441753,-418.23752853,0.000316,2]
[324886432,1714397441762,-418.23752853,0.000316,2]
[324886433,1714397441771,-418.23752853,0.000316,2]
[324886434,1714397441781,-418.23752853,0.000316,2]
[324886435,1714397441790,-418.23752853,0.000316,2]
[324886436,1714397441800,-418.23752853,0.000316,2]
[324886437,1714397441809,-418.23752853,0.000316,2]
[324886438,1714397441819,-418.23752853,0.000316,2]
[324886439,1714397441828,-418.23752853,0.000316,2]
[324886440,1714397441838,-418.23752853,0.000316,2]
[324886441,1714397441847,-418.23752853,0.000316,2]
[324886442,1714397441856,-418.23752853,0.000316,2]
[324886443,1714397441866,-418.23752853,0.000316,2]
[324886444,1714397441875,-418.23752,0.000316,2]
[324886445,1714397441884,-1000.0,0.000316,7]
[324886446,1714397441895,-216.74919805,0.00031604,7]
[324886447,1714397441905,-151.47429953,0.00031635,7]
[324886448,1714397441914,-216.74919805,0.00031635,7]
[324886449,1714397441924,-156.18617836,0.00031642,7]
[324886450,1714397441934,-237.0868477,0.00031643,7]
[324886451,1714397441944,-151.47429953,0.00031652,7]
[324886452,1714397441953,-237.0868477,0.00031655,7]
[324886453,1714397441966,-821.97845428,0.00031656,7]
[324886454,1714397441975,-3162.0,0.00031657,2]
[324886455,1714397441985,-237.0868477,0.00031664,7]
[324886456,1714397441995,-156.18617836,0.00031676,7]
[324886457,1714397442005,-301.51757188,0.0003168,4]
[324886458,1714397442015,-151.47429953,0.0003168,7]
[324886459,1714397442025,-237.0868477,0.00031732,7]
[324886460,1714397442034,-151.47429953,0.00031738,7]
[324886461,1714397442043,-151.47429962,0.00031739,7]
[324886462,1714397442055,-237.0868477,0.00031742,7]
[324886463,1714397442065,-156.18617836,0.00031748,7]
[324886464,1714397442074,-977.55062889,0.00031748,2]
[324886465,1714397442084,-153.34957969,0.00031748,2]
[324886466,1714397442093,-153.34957969,0.00031748,2]
[324886467,1714397442103,-153.34957969,0.00031748,2]
[324886468,1714397442112,-153.34957969,0.00031748,2]
[324886469,1714397442122,-3246.0,0.00031748,120]
[324886470,1714397442136,-1000.0,0.00031748,120]
[324886471,1714397442147,-525.9,0.00031748,120]
[324886472,1714397442156,-237.0868477,0.00031762,7]
[324886473,1714397442168,-821.97845428,0.00031765,7]
[324886474,1714397442179,-153.79833288,0.00031769,7]
[324886475,1714397442189,-237.0868477,0.00031792,7]
[324886476,1714397442200,-156.18617836,0.00031795,7]
[324886477,1714397442216,-216.74919805,0.00031808,7]
[324886478,1714397442225,-237.0868477,0.00031814,7]
[324886479,1714397442235,-821.97845428,0.00031833,7]
[324886480,1714397442245,-237.0868477,0.0003185,7]
[324886481,1714397442254,-153.79833288,0.00031876,7]
[324886482,1714397442264,-153.34957971,0.00031884,2]
[324886483,1714397442273,-153.79833288,0.00031891,7]
[324886484,1714397442283,-153.79833288,0.00031907,7]
[324886485,1714397442363,-821.97845428,0.00031915,7]
[324886486,1714397442373,-216.74919805,0.0003194,7]
[324886487,1714397442383,-153.79833292,0.00031966,7]
[324886488,1714397442393,-156.18617836,0.00031985,7]
[324886489,1714397442403,-638.7649893,0.00032,4]
[324886490,1714397442413,-821.97845435,0.00032025,7]
[324886491,1714397442423,-216.74919805,0.00032032,7]
[324886492,1714397442433,-156.18617836,0.00032033,7]
[324886493,1714397442443,-237.08684778,0.00032038,7]
[324886494,1714397442453,-216.74919805,0.00032046,7]
[324886495,1714397442466,-999.0,0.00032054,14]
[324886496,1714397442475,-216.74919805,0.00032062,7]
[324886497,1714397442484,-417.0,0.00032102,2]
[324886498,1714397442494,-216.74919805,0.00032209,7]
[324886499,1714397442504,-603.03514377,0.00032212,7]
[324886500,1714397442514,-156.18617836,0.00032225,7]
[324886501,1714397442524,-216.74919819,0.00032228,7]
[324886502,1714397442534,-156.18617857,0.00032233,7]
[324886503,1714397442544,-153.34957969,0.00032384,2]
[324886504,1714397442554,-404.099999,0.000324,5]
[324886505,1714397442564,-500.0,0.00032729,2]
[324886506,1714397442574,-166.72715655,0.00032753,4]
[324886507,1714397442584,-2101.39185127,0.00032799,2]
[324886508,1714397442595,-154.76784823,0.00032799,2]
[324886509,1714397442605,-14236.56301843,0.00032799,7]
[324886510,1714397442615,-191.50617302,0.00032799,4]
[324886511,1714397442625,-1452.47576498,0.00032799,4]
[324886512,1714397442634,-2000.0,0.00032799,2]
[324886513,1714397442644,-154.76784823,0.00032799,4]
[324886514,1714397442654,-334.27940594,0.00032799,2]
[324886515,1714397442664,-500.0,0.00032876,10]
[324886516,1714397442673,-153.34957969,0.00032884,2]
[324886517,1714397442682,-620.0,0.00032937,2]
[324886518,1714397442692,-171.8927227,0.00032985,2]
[324886519,1714397442702,-228.0,0.00033,2]
[324886520,1714397442714,-228.0,0.00033,2]
[324886521,1714397442723,-1206.07028754,0.00033027,30]
[324886522,1714397442735,-999.0,0.0003315,16]
[324886523,1714397442745,-153.34957969,0.00033384,4]
[324886526,1714397442753,-300.0,0.000334,6]
[324886528,1714397442764,-466.35092847,0.00034,4]
[324886530,1714397442773,-500.0,0.00034246,10]
[324886532,1714397442783,-999.0,0.00034246,18]
[324886534,1714397442793,-300.0,0.000344,7]
[324886535,1714397442803,-572.277777,0.00034521,2]
[324886536,1714397442812,-151.0,0.0003465,23]
[324886537,1714397442822,-1000.0,0.000348,3]
[324886538,1714397442831,-588.0,0.000348,2]
[324886539,1714397442840,-4427.0,0.00034823,2]
[324886540,1714397442849,-5914.65556104,0.00035,4]
[324886541,1714397442859,-1307.89147106,0.00035,7]
[324886544,1714397442872,-1537.50536275,0.00035,2]
[324886547,1714397442881,-154.76784823,0.00035,4]
[324886549,1714397442892,-12756.78468986,0.00035,4]
[324886551,1714397442902,-791.81686347,0.00035,30]
[324886552,1714397442912,-447.0489704,0.00035,10]
[324886553,1714397442921,-961.68740692,0.00035,30]
[324886555,1714397442930,-500.0,0.00035,2]
[324886558,1714397442939,-417.0,0.00035102,2]
[324886561,1714397442949,-999.0,0.00035342,20]
[324886564,1714397442960,-300.0,0.000354,8]
[324886566,1714397442969,-500.0,0.00035616,10]
[324886568,1714397442979,-1347.781646,0.00035616,120]
[324886572,1714397442988,-64545.37,0.00035616,3]
[324886576,1714397442998,-53787.81,0.00035616,3]
[324886580,1714397443007,-44823.17,0.00035616,3]
[324886583,1714397443018,-154.76784823,0.0003589,2]
[324886586,1714397443027,-162.0,0.00036,2]
[324886589,1714397443037,-228.0,0.00036,2]
[324886592,1714397443047,-228.0,0.00036,2]
[324886595,1714397443056,-228.0,0.00036,2]
[324886598,1714397443065,-300.0,0.000364,9]
[324886601,1714397443074,-999.0,0.00036438,22]
[324886604,1714397443084,-500.0,0.00036986,10]
[324886606,1714397443093,-3512.35610251,0.00037,2]
[324886608,1714397443103,-153.0,0.00037349,2]
[324886609,1714397443113,-162.0,0.00037397,2]
[324886611,1714397443123,-300.0,0.000374,11]
[324886613,1714397443134,-3000.0,0.000375,32]
[324886614,1714397443147,-3000.0,0.0003751,32]
[324886616,1714397443157,-3000.0,0.0003752,32]
[324886618,1714397443166,-3000.0,0.0003753,32]
[324886619,1714397443175,-999.0,0.00037534,24]
[324886620,1714397443186,-3000.0,0.0003754,32]
[324886621,1714397443196,-3000.0,0.0003755,32]
[324886622,1714397443205,-3000.0,0.0003756,32]
[324886623,1714397443218,-3000.0,0.0003757,32]
[324886624,1714397443228,-3000.0,0.0003758,32]
[324886625,1714397443237,-3000.0,0.0003759,32]
[324886626,1714397443247,-3000.0,0.000376,32]
[324886627,1714397443256,-3000.0,0.0003761,32]
[324886628,1714397443265,-3000.0,0.0003762,32]
[324886629,1714397443275,-3000.0,0.0003763,32]
[324886630,1714397443285,-3000.0,0.0003764,32]
[324886631,1714397443295,-3000.0,0.0003765,32]
[324886632,1714397443304,-3000.0,0.0003766,32]
[324886633,1714397443314,-1000.0,0.00037754,2]
[324886634,1714397443324,-153.0,0.00037972,2]
[324886635,1714397443334,-153.0,0.00037972,2]
[324886636,1714397443343,-153.0,0.00037972,2]
[324886637,1714397443354,-153.0,0.00037972,2]
[324886638,1714397443364,-153.0,0.00037987,2]
[324886639,1714397443373,-153.0,0.00037987,2]
[324886640,1714397443383,-269.7553959,0.00037987,2]
[324886641,1714397443393,-153.0,0.00037987,2]
[324886642,1714397443402,-153.0,0.00037987,2]
[324886643,1714397443412,-153.0,0.00037987,2]
[324886645,1714397443421,-153.0,0.00037987,2]
[324886647,1714397443430,-153.0,0.00037987,2]
[324886649,1714397443440,-153.0,0.00037987,2]
[324886650,1714397443450,-203.7672836,0.00037987,2]
[324886651,1714397443460,-5009.79512819,0.00038,2]
[324886652,1714397443469,-417.0,0.00038102,2]
[324886653,1714397443479,-153.0,0.00038171,2]
[324886654,1714397443488,-153.0,0.00038171,2]
[324886655,1714397443497,-153.0,0.00038171,2]
[324886656,1714397443507,-153.0,0.00038171,2]
[324886657,1714397443517,-153.0,0.00038171,2]
[324886658,1714397443527,-153.0,0.00038171,2]
[324886659,1714397443537,-153.0,0.00038171,2]
[324886660,1714397443546,-153.0,0.00038171,2]
[324886661,1714397443556,-153.0,0.00038171,2]
[324886662,1714397443565,-153.0,0.00038171,2]
[324886663,1714397443575,-153.0,0.00038171,2]
[324886664,1714397443585,-153.0,0.00038171,2]
[324886665,1714397443595,-153.0,0.00038171,2]
[324886666,1714397443605,-153.0,0.00038171,2]
[324886667,1714397443682,-153.0,0.00038171,2]
[324886668,1714397443692,-153.0,0.00038171,2]
[324886669,1714397443702,-153.0,0.00038171,2]
[324886670,1714397443713,-153.0,0.00038171,2]
[324886671,1714397443722,-153.0,0.00038171,2]
[324886672,1714397443732,-153.0,0.00038171,2]
[324886673,1714397443741,-153.0,0.00038171,2]
[324886674,1714397443751,-153.0,0.00038171,2]
[324886675,1714397443761,-153.0,0.00038171,2]
[324886676,1714397443771,-153.0,0.00038171,2]
[324886677,1714397443781,-153.0,0.00038171,2]
[324886678,1714397443791,-153.0,0.00038171,2]
[324886679,1714397443802,-153.0,0.00038171,2]
[324886680,1714397443812,-153.0,0.00038171,2]
[324886681,1714397443821,-153.0,0.00038171,2]
[324886682,1714397443831,-153.0,0.00038171,2]
[324886683,1714397443841,-153.0,0.00038171,2]
[324886684,1714397443851,-153.0,0.00038171,2]
[324886685,1714397443861,-153.0,0.00038171,2]
[324886686,1714397443870,-153.0,0.00038171,2]
[324886687,1714397443879,-153.0,0.00038171,2]
[324886688,1714397443888,-153.0,0.00038171,2]
[324886689,1714397443898,-153.0,0.00038171,2]
[324886690,1714397443908,-153.0,0.00038171,2]
[324886691,1714397443917,-153.0,0.00038171,2]
[324886692,1714397443926,-153.0,0.00038171,2]
[324886693,1714397443935,-153.0,0.00038171,2]
[324886694,1714397443945,-153.0,0.00038171,2]
[324886695,1714397443954,-153.0,0.00038171,2]
[324886696,1714397443965,-153.0,0.00038171,2]
[324886697,1714397443974,-153.0,0.00038171,2]
[324886698,1714397443984,-153.0,0.00038171,2]
[324886699,1714397443994,-153.0,0.00038171,2]
[324886700,1714397444004,-153.0,0.00038171,2]
[324886701,1714397444014,-153.0,0.00038171,2]
[324886702,1714397444024,-153.0,0.00038171,2]
[324886703,1714397444034,-153.0,0.00038171,2]
[324886704,1714397444043,-153.0,0.00038171,2]
[324886705,1714397444054,-153.0,0.00038171,2]
[324886706,1714397444063,-153.0,0.00038171,2]
[324886707,1714397444073,-153.0,0.00038171,2]
[324886708,1714397444082,-153.0,0.00038171,2]
[324886709,1714397444092,-153.0,0.00038171,2]
[324886710,1714397444101,-153.0,0.00038171,2]
[324886711,1714397444111,-153.0,0.00038171,2]
[324886712,1714397444120,-153.0,0.00038171,2]
[324886713,1714397444132,-153.0,0.00038171,2]
[324886714,1714397444145,-153.0,0.00038171,2]
[324886715,1714397444154,-203.7672836,0.00038171,2]
[324886716,1714397444164,-153.0,0.00038171,2]
[324886717,1714397444175,-203.7672836,0.00038171,2]
[324886718,1714397444185,-153.0,0.00038171,2]
[324886719,1714397444195,-153.0,0.00038171,2]
[324886720,1714397444204,-203.7672836,0.00038171,2]
[324886721,1714397444215,-203.7672836,0.00038171,2]
[324886722,1714397444225,-203.7672836,0.00038171,2]
[324886723,1714397444235,-203.7672836,0.00038171,2]
[324886724,1714397444246,-203.7672836,0.00038171,2]
[324886725,1714397444255,-203.7672836,0.00038171,2]
[324886726,1714397444264,-6198.0,0.00038305,3]
[324886727,1714397444274,-565.05492021,0.00038356,10]
[324886728,1714397444283,-402.56689138,0.00038356,2]
[324886729,1714397444293,-300.0,0.000384,12]
[324886730,1714397444302,-153.0,0.00038548,2]
[324886731,1714397444312,-203.7672836,0.00038548,2]
[324886732,1714397444322,-203.7672836,0.00038548,2]
[324886733,1714397444331,-407.5345672,0.00038548,2]
[324886734,1714397444341,-407.5345672,0.00038548,2]
[324886735,1714397444350,-999.0,0.0003863,26]
[324886736,1714397444359,-161.029629,0.00038748,2]
[324886737,1714397444369,-538.50102023,0.00038874,3]
[324886738,1714397444378,-159.00286188,0.00039,120]
[324886739,1714397444388,-228.0,0.00039,2]
[324886740,1714397444399,-228.0,0.00039,2]
[324886741,1714397444408,-228.0,0.00039,2]
[324886742,1714397444418,-317.78682225,0.00039007,2]
[324886743,1714397444428,-306.0,0.00039096,2]
[324886744,1714397444438,-153.0,0.00039096,2]
[324886745,1714397444447,-153.0,0.00039096,2]
[324886746,1714397444459,-153.0,0.00039096,2]
[324886747,1714397444468,-153.0,0.00039096,2]
[324886748,1714397444477,-1000.0,0.00039124,2]
[324886749,1714397444487,-1000.0,0.00039137,2]
[324886750,1714397444495,-1000.0,0.00039147,2]
[324886751,1714397444505,-1210.18491626,0.00039203,11]
[324886752,1714397444515,-1031.51043822,0.00039245,2]
[324886753,1714397444525,-1000.0,0.00039266,2]
[324886754,1714397444535,-163.0,0.00039267,14]
[324886755,1714397444544,-1000.0,0.00039282,2]
[324886756,1714397444554,-37079.14741565,0.000393,7]
[324886757,1714397444564,-151.31843755,0.00039321,2]
[324886758,1714397444573,-1000.0,0.00039335,2]
[324886759,1714397444583,-1000.0,0.00039369,2]
[324886760,1714397444592,-153.0,0.0003937,2]
[324886761,1714397444602,-153.0,0.0003937,2]
[324886762,1714397444611,-153.0,0.0003937,2]